Cogmind - Beta 9.6 @@@ ROGUE MODE // 2020.04.15 @ 20:46:38 Player: Ape Result: Destroyed by Tracker with Linked Autogun Performance ------------- Evolutions (7) 3500 Regions Visited (23) 4600 Robots Destroyed (156) 780 Value Destroyed (5584) 5584 Prototype IDs (218) 4360 Alien Tech Used (1) 200 Bonus (6864) 6864 TOTAL SCORE: 25888 Bonus ------- High Alert Combat Kills 756 Follower Combat Kills 831 Met Data Miner 300 Used Data Conduit 3000 Met Imprinter 300 Met Warlord at Base 500 MAIN.C Attacked Warlord 500 Pursued by Intercept 1000 Friendly Fire -323 Cogmind --------- Core Integrity 0/1300 Matter 263/300 Energy 92/100 System Corruption 5% Temperature Cool (0) Movement Core (50) Location -3/Research Parts ------- > --- POWER (3) -------- (None) > --- PROPULSION (7) --- Advanced Medium Treads > --- UTILITY (9) ------ Makeshift Hacking Suite Makeshift Hacking Suite > --- WEAPON (2) ------- (None) > --- INVENTORY (4) ---- Advanced Signal Interpreter System Purifier Mass Driver Peak State ------------ > --- POWER ------------ Light Deuterium Engine Vortex Chain Reactor > --- PROPULSION ------- Makeshift Hover Unit Makeshift Hover Unit Cooled Antigrav System Cooled Antigrav System Electron Diverter Electron Diverter > --- UTILITY ---------- Medium Storage Unit Advanced Signal Interpreter Advanced Salvage Targeting Computer Experimental Phase Shifter Advanced Remote Shield Makeshift Hacking Suite Makeshift System Shield System Purifier > --- WEAPON ----------- Vortex Shotgun Vortex Shotgun > --- INVENTORY -------- Advanced Signal Interpreter Makeshift Hacking Suite Makeshift Hacking Suite Makeshift System Shield Vortex Rifle Vortex Rifle Mass Driver Improved Plasma Cutter [Rating: 137] Favorites ----------- Power Improved Deuterium Engine Engine Improved Deuterium Engine Power Core Light Nuclear Core Reactor Vortex Chain Reactor Propulsion Aluminum Leg Treads Light Treads Leg Aluminum Leg Wheel Wheel Hover Unit Makeshift Hover Unit Flight Unit Cooled VTOL Module Utility High-capacity Storage Unit Device Advanced Sensor Array Storage High-capacity Storage Unit Processor Advanced Signal Interpreter Hackware Makeshift Hacking Suite Protection Improved Light Armor Plating Weapon Makeshift Axe Energy Gun Particle Gun Energy Cannon Heavy Ion Cannon Ballistic Gun Assault Rifle Ballistic Cannon Flak Cannon Launcher Mini Smartbomb Launcher Special Weapon Improved Plasma Cutter Impact Weapon Makeshift Hammer Slashing Weapon Makeshift Axe Piercing Weapon Spear Build | -11 -10 -10 -10 -9 -8 -7 -7 -7 -7 -6 -6 -6 -6 -6 -5 -5 -5 -4 -4 -4 -4 -3 -3 ------- Run | Scr Mat Min Exi Min Mat Fac Low Low Zio Pro Fac Low Low Dat Pro Fac Ext Fac Upp Upp War Pro Res Slots Evolved 14 | . . . . . 4 2 . . . . 2 . . . . 2 . 2 . . . . 2 Power 2 | . . . . . . . . . . . 1 . . . . . . 1 . . . . . Propulsion 5 | . . . . . 2 1 . . . . . . . . . 1 . . . . . . 1 Utility 7 | . . . . . 2 1 . . . . 1 . . . . 1 . 1 . . . . 1 Weapon . | . . . . . . . . . . . . . . . . . . . . . . . . Parts Attached 255 | . 18 6 3 4 43 77 7 3 4 3 14 . . 2 . 4 23 8 . 1 18 4 13 Power 40 | . 4 3 . . 5 11 1 . . . 9 . . . . 2 3 . . . 2 . . Engine 24 | . 4 2 . . 3 11 . . . . 3 . . . . . . . . . 1 . . Core 12 | . . 1 . . 2 . 1 . . . 3 . . . . 2 3 . . . . . . Reactor 4 | . . . . . . . . . . . 3 . . . . . . . . . 1 . . Propulsion 78 | . 4 2 . 3 19 32 1 . . . 1 . . 2 . . 3 1 . 1 6 . 3 Treads 14 | . . . . . . 13 . . . . . . . . . . . . . . . . 1 Leg 29 | . 4 2 . 3 19 1 . . . . . . . . . . . . . . . . . Wheel 7 | . . . . . . 6 . . . . . . . . . . . . . 1 . . . Hover 11 | . . . . . . 1 . . . . . . . . . . 3 1 . . 4 . 2 Flight 17 | . . . . . . 11 1 . . . 1 . . 2 . . . . . . 2 . . Utility 60 | . 8 . 3 . 5 12 1 1 4 1 3 . . . . 2 3 6 . . 6 . 5 Device 13 | . 1 . . . . 1 1 . 2 1 1 . . . . . 1 1 . . 3 . 1 Storage 14 | . 4 . 3 . 1 4 . . 1 . . . . . . . . . . . 1 . . Processor 9 | . . . . . 1 2 . . . . . . . . . 1 1 3 . . . . 1 Hackware 16 | . . . . . 1 3 . 1 1 . 1 . . . . 1 1 2 . . 2 . 3 Protection 8 | . 3 . . . 2 2 . . . . 1 . . . . . . . . . . . . Artifact . | . . . . . . . . . . . . . . . . . . . . . . . . Weapon 77 | . 2 1 . 1 14 22 4 2 . 2 1 . . . . . 14 1 . . 4 4 5 Energy Gun 12 | . 1 . . . 1 2 . . . . . . . . . . . . . . 2 2 4 Energy Cannon 8 | . . . . . 4 4 . . . . . . . . . . . . . . . . . Ballistic Gun 12 | . 1 1 . 1 5 3 . . . . . . . . . . . 1 . . . . . Ballistic Cannon 10 | . . . . . 3 4 . . . . . . . . . . . . . . 1 1 1 Launcher 16 | . . . . . 1 4 2 . . 1 . . . . . . 8 . . . . . . Special Weapon 2 | . . . . . . . . . . . . . . . . . . . . . 1 1 . Impact Weapon 5 | . . . . . . 3 2 . . . . . . . . . . . . . . . . Slashing Weapon 10 | . . . . . . . . 2 . 1 1 . . . . . 6 . . . . . . Piercing Weapon 2 | . . . . . . 2 . . . . . . . . . . . . . . . . . Special Melee Weapon . | . . . . . . . . . . . . . . . . . . . . . . . . Unidentified Prototypes 5 | . . . . . . 2 . . . 1 . . . . . . . . . . 2 . . Parts Lost 94 | . 3 1 . 1 15 24 . . . 2 1 . . 1 . 1 5 18 1 . . 2 19 Power 14 | . 1 . . . 3 4 . . . 1 . . . . . 1 . 2 . . . . 2 Propulsion 36 | . . . . . 6 13 . . . . 1 . . 1 . . 3 6 . . . . 6 Utility 22 | . . . . . 1 2 . . . . . . . . . . 2 8 1 . . 1 7 Weapon 22 | . 2 1 . 1 5 5 . . . 1 . . . . . . . 2 . . . 1 4 Highest Loss Streak 19 | . 1 1 . 1 4 5 . . . 2 1 . . 1 . 1 2 12 3 . . 2 19 Average Slot Usage (%) 90 | . 98 99 100 100 95 94 99 100 100 92 91 100 100 97 100 90 72 64 10 12 41 92 66 Engine 4 | . 14 13 . . 5 6 . . . . 2 . . . . . . . . . . 5 2 Core 3 | . . . 14 14 2 . 7 7 7 . 2 13 13 13 13 9 7 5 . . . . . Treads 3 | . . . . . . 19 . . . . . . . . . . . . . . . . . Leg 12 | . 28 28 28 28 33 2 . . . . . . . . . . . . . . . . . Wheel 1 | . . . . . . 5 . . . . . . . . . . . . . 2 3 . . Hover 1 | . . . . . . 2 . . . . . . . . . . 2 10 . . 11 21 12 Flight 11 | . . . . . . 3 37 38 38 38 33 33 33 30 33 29 17 6 . . 3 10 7 Device 2 | . . . . . . . 6 7 7 7 5 6 6 6 6 5 5 6 . . 4 13 5 Storage 13 | . 20 28 28 28 18 14 7 7 7 7 6 6 6 6 6 5 5 3 . . 3 5 3 Processor 5 | . . . . . 3 8 7 7 7 7 6 6 6 6 6 7 8 9 10 10 10 10 10 Hackware 9 | . . . . . 8 12 15 15 15 15 19 20 20 20 20 19 19 13 . . 1 10 12 Protection 1 | . 5 . . . 5 1 . . . . . . . . . . . . . . . . . Energy Gun 2 | . 12 12 . . 1 . . . . . . . . . . . . . . . . 3 2 Ballistic Gun 6 | . 14 14 28 28 8 3 . . . . . . . . . . . . . . . . . Ballistic Cannon 1 | . . . . . 5 5 . . . . . . . . . . . . . . . 3 2 Slashing Weapon 2 | . . . . . . . . 2 15 15 9 13 13 13 13 10 1 1 . . . . . Naked Turns . | . . . . . . . . . . . . . . . . . . . . . . . . Heaviest Build 91 | 11 58 58 73 73 84 91 24 20 24 23 36 27 27 27 27 27 31 32 . . 74 74 72 Greatest Support 82 | 20 20 20 20 20 55 82 36 22 27 36 34 27 36 36 36 36 40 49 3 3 74 74 74 Greatest Overweight (x) 8 | . 2 2 3 3 3 8 . . . 4 1 . . . . 1 1 . . . . . 3 Average Overweight (x) . | . . 2 2 3 1 3 . . . . . . . . . . . . . . . . . Largest Inventory Capacity 20 | . 18 18 20 20 20 20 8 8 8 8 8 8 8 8 8 8 8 8 4 4 8 8 8 Average Capacity 13 | . 11 18 19 20 20 18 8 8 8 8 8 8 8 8 8 8 8 6 4 4 6 8 6 Most Carried 20 | . 18 18 20 20 20 20 8 8 8 8 8 8 8 8 8 8 8 4 4 4 8 8 7 Average Carried 13 | . 10 17 18 19 19 18 7 7 8 7 7 7 8 7 7 7 7 3 4 4 6 7 5 Final Capacity 20 | 6 18 18 20 20 20 8 8 8 8 8 8 8 8 8 8 8 8 4 4 4 8 8 4 Final Carried 20 | 6 18 18 20 20 20 8 8 8 8 8 8 8 8 7 8 8 5 4 4 4 8 7 3 Class Distribution -------------------- 23% | Hauler-Mutant 20% | Hacker-Sprinter 18% | Scavenger-Mutant 16% | Mutant 12% | Hacker-Mutant 4% | Generator-Mutant 3% | Hacker-Scout Dominant Class ---------------- Mutant | -10/Materials Scavenger-Mutant | -10/Mines Hauler-Mutant | -10/Exiles Hauler-Mutant | -9/Mines Hauler-Mutant | -8/Materials Scavenger-Mutant | -7/Factory Hacker-Sprinter | -7/Lower Caves Hacker-Sprinter | -7/Lower Caves Hacker-Sprinter | -7/Zion Hacker-Mutant | -6/Proximity Caves Hacker-Sprinter | -6/Factory Hacker-Sprinter | -6/Lower Caves Hacker-Sprinter | -6/Lower Caves Hacker-Sprinter | -6/Data Miner Hacker-Sprinter | -5/Proximity Caves Hacker-Sprinter | -5/Factory Hacker-Scout | -5/Extension Hacker-Scout | -4/Factory Mutant | -4/Upper Caves Mutant | -4/Upper Caves Mutant | -4/Warlord Generator-Mutant | -3/Proximity Caves Hacker-Mutant | -3/Research Resources | -11 -10 -10 -10 -9 -8 -7 -7 -7 -7 -6 -6 -6 -6 -6 -5 -5 -5 -4 -4 -4 -4 -3 -3 ----------- Run | Scr Mat Min Exi Min Mat Fac Low Low Zio Pro Fac Low Low Dat Pro Fac Ext Fac Upp Upp War Pro Res Matter Collected 5158 | 200 317 115 30 77 1103 1902 288 37 49 43 27 108 . . 15 . 585 . . 30 168 64 . Remotely . | . . . . . . . . . . . . . . . . . . . . . . . . Salvage Created 5497 | . 512 131 . 139 1251 2364 178 . . 193 27 57 . . . 46 474 . . . . 125 . Parts 279 | . 28 18 . 6 56 124 8 . . 2 2 . . . . 3 21 . . . . 11 . Haulers Intercepted 2 | . . . . . 1 . . . . . . . . . . . 1 . . . . . . Recyclers Shooed 5 | . 1 . . . 1 2 . . . . . . . . . . 1 . . . . . . Parts Field Recycled . | . . . . . . . . . . . . . . . . . . . . . . . . Retrieved Matter . | . . . . . . . . . . . . . . . . . . . . . . . . Parts Self-Destructed 63 | . . . . . . . 7 9 . 7 . 1 6 . . . . . . . 22 11 . Prevented 17 | . . . . . . . 1 . . . . 3 . . . . . . . . 13 . . Kills | -11 -10 -10 -10 -9 -8 -7 -7 -7 -7 -6 -6 -6 -6 -6 -5 -5 -5 -4 -4 -4 -4 -3 -3 ------- Run | Scr Mat Min Exi Min Mat Fac Low Low Zio Pro Fac Low Low Dat Pro Fac Ext Fac Upp Upp War Pro Res Combat Hostiles Destroyed 127 | . 16 5 . 3 30 52 6 . . . . . . . . 1 10 . . . . 4 . Melee 1 | . . . . . . . . . . . . . . . . . 1 . . . . . . Guns 60 | . 15 5 . 3 16 17 . . . . . . . . . . . . . . . 4 . Cannons 32 | . . . . . 11 21 . . . . . . . . . . . . . . . . . AOE 34 | . 1 . . . 3 14 6 . . . . . . . . 1 9 . . . . . . Classes Destroyed 15 | . 3 1 . . 2 6 2 . . . 1 . . . . . . . . . . . . Worker 3 | . . . . . . 3 . . . . . . . . . . . . . . . . . Builder 9 | . . 1 . . 1 5 . . . . . . . . . . 2 . . . . . . Hauler 2 | . . . . . 1 . . . . . . . . . . . 1 . . . . . . Recycler 6 | . 1 . . . 1 4 . . . . . . . . . . . . . . . . . Minesweeper 1 | . . . . . . . 1 . . . . . . . . . . . . . . . . Operator 3 | . . . . . . 3 . . . . . . . . . . . . . . . . . Watcher 2 | . . . . . . . . . . . 1 . . . . 1 . . . . . . . Swarmer 31 | . 6 3 . . 4 8 4 . . . . . . . . . 2 . . . . 4 . Grunt 62 | . 10 2 . 3 19 23 . . . . . . . . . . 5 . . . . . . Brawler 5 | . . . . . . 5 . . . . . . . . . . . . . . . . . Duelist 3 | . . . . . . 3 . . . . . . . . . . . . . . . . . Protector 1 | . . . . . . 1 . . . . . . . . . . . . . . . . . Sentry 19 | . . . . . 7 9 . . . . . . . . . . 3 . . . . . . Programmer 3 | . . . . . . 3 . . . . . . . . . . . . . . . . . Tracker 1 | . . . . . . . . . . . . . . . . 1 . . . . . . . Packrat 2 | . . . . . . . 1 . . . . 1 . . . . . . . . . . . Thief 2 | . . . . . . . 2 . . . . . . . . . . . . . . . . Thug 1 | . . . . . . . . . . . . . . . . . 1 . . . . . . Best Kill Streak 12 | . 4 4 . 3 4 12 4 . . . 1 . . . . 2 9 . . . . 4 . Combat Bots Only 7 | . 4 3 . 3 4 5 4 . . . . . . . . 1 7 . . . . 4 . Max Kills in Single Turn 4 | . 1 1 . 1 2 3 4 . . . 1 1 . . . 2 2 . . . . 2 . Gunslinging 1 | . . . . . . 1 . . . . . . . . . . . . . . . . . Exploded 4 | . 1 . . . 2 2 4 . . . . . . . . 1 2 . . . . . . Melee 1 | . . . . . . . . . . . . . . . . . 1 . . . . . . Uniques/NPCs Destroyed . | . . . . . . . . . . . . . . . . . . . . . . . . Combat | -11 -10 -10 -10 -9 -8 -7 -7 -7 -7 -6 -6 -6 -6 -6 -5 -5 -5 -4 -4 -4 -4 -3 -3 -------- Run | Scr Mat Min Exi Min Mat Fac Low Low Zio Pro Fac Low Low Dat Pro Fac Ext Fac Upp Upp War Pro Res Damage Taken 13313 | . 613 201 . 246 2410 3520 382 . . 58 31 . . 46 . 564 511 1616 37 26 . 403 2649 Core 3879 | . 56 26 . 55 304 523 121 . . 25 13 . . . . 319 121 938 16 26 . 25 1311 Absorbed by Shields 139 | . . . . . . . . . . . . . . . . . 36 . . . . 103 . Core Remaining (%) 51 | 100 . . . 45 44 . . . . 4 . . . . 98 . 56 . . . . 12 . Volleys Fired 374 | . 59 20 . 9 110 146 7 . . 1 . . . . . . 12 . . . . 6 4 Largest 2 | . 2 2 . 2 2 2 1 . . 1 . . . . . . 1 . . . . 2 2 Hottest 133 | . 85 85 . 40 133 128 36 . . 36 . . . . . . 80 . . . . 120 120 Shots Fired 660 | . 111 31 . 18 197 267 7 . . 1 . . . . . . 12 . . . . 10 6 Gun 376 | . 111 31 . 18 105 98 . . . . . . . . . . . . . . . 8 5 Cannon 250 | . . . . . 90 157 . . . . . . . . . . . . . . . 2 1 Launcher 34 | . . . . . 2 12 7 . . 1 . . . . . . 12 . . . . . . Special . | . . . . . . . . . . . . . . . . . . . . . . . . Kinetic 469 | . 70 20 . 18 166 192 . . . . . . . . . . . . . . . 2 1 Thermal 144 | . 41 11 . . 29 63 . . . . . . . . . . . . . . . . . Explosive 34 | . . . . . 2 12 7 . . 1 . . . . . . 12 . . . . . . Electromagnetic . | . . . . . . . . . . . . . . . . . . . . . . . . Entropic 13 | . . . . . . . . . . . . . . . . . . . . . . 8 5 Robot Hit Streak 17 | . 8 7 . 6 14 17 3 . . . . . . . . . 2 . . . . 3 3 Robot Miss Streak 8 | . 7 6 . 1 8 4 1 . . . . . . . . . . . . . . 4 4 Penetration Max 1 | . . . . . . 1 . . . . . . . . . . . . . . . . . Secondary Targets 8 | . 1 . . 2 1 3 . . . . . . . . . . . . . . . 1 . Max Gunslinging Chain 1 | . 1 . . 1 1 1 . . . . . . . . . . . . . . . 1 . Shots Hit Robots 482 | . 62 14 . 13 158 200 8 . . 5 3 1 . 1 . . 7 . . . . 6 4 Core Hits 381 | . 25 8 . 8 96 187 9 . . 5 1 . . . . 2 30 . . . . 7 3 Critical Hits 6 | . . . . . 2 4 . . . . . . . . . . . . . . . . . Critical Kills 3 | . . . . . 1 2 . . . . . . . . . . . . . . . . . Critical Parts Destroyed 3 | . . . . . 1 2 . . . . . . . . . . . . . . . . . Melee Attacks 227 | . . . . . . 2 14 5 . 17 47 4 34 1 26 41 33 3 . . . . . Impact 16 | . . . . . . . 12 4 . . . . . . . . . . . . . . . Slashing 206 | . . . . . . . . . . 17 47 4 34 1 26 41 33 3 . . . . . Piercing 5 | . . . . . . 2 2 1 . . . . . . . . . . . . . . . Sneak Attacks 6 | . . . . . . . 3 . . . . 1 . 1 . . 1 . . . . . . Combat Hostiles . | . . . . . . . . . . . . . . . . . . . . . . . . Follow-up Attacks 1 | . . . . . . . 1 . . . . . . . . . . . . . . . . Damage Inflicted 16311 | . 784 201 . 154 2836 7324 961 . . 438 137 136 . 146 . 349 2396 . . . . 260 189 Guns 4964 | . 784 201 . 154 1296 2087 . . . . . . . . . . . . . . . 260 182 Cannons 4154 | . . . . . 1279 2875 . . . . . . . . . . . . . . . . . Explosions 5783 | . . . . . 247 2362 750 . . 12 . . . . . 349 2063 . . . . . . Melee 1389 | . . . . . . . 211 . . 426 137 136 . 146 . . 333 . . . . . . Ramming 21 | . . . . . 14 . . . . . . . . . . . . . . . . . 7 Kinetic 6457 | . 421 129 . 154 2160 3593 . . . . . . . . . . . . . . . . . Thermal 2716 | . 363 72 . . 415 1517 . . . . . . . . . 349 . . . . . . . Explosive 5286 | . . . . . 247 2214 750 . . 12 . . . . . . 2063 . . . . . . Electromagnetic . | . . . . . . . . . . . . . . . . . . . . . . . . Impact 148 | . . . . . . . 148 . . . . . . . . . . . . . . . . Slashing 1178 | . . . . . . . . . . 426 137 136 . 146 . . 333 . . . . . . Piercing 63 | . . . . . . . 63 . . . . . . . . . . . . . . . . Entropic 442 | . . . . . . . . . . . . . . . . . . . . . . 260 182 Highest Corruption 11 | . . . . . 2 11 11 11 11 . . . . . . . . 1 1 1 3 . 5 Average Corruption 5 | . . . . . 2 6 11 11 11 . . . . . . . . 1 1 1 2 . 2 Corruption Purged . | . . . . . . . . . . . . . . . . . . . . . . . . Effects 127 | . . . . . 11 70 28 13 3 . . . . . . . . 1 . . 1 . . Message Errors 29 | . . . . . 4 15 5 2 1 . . . . . . . . 1 . . 1 . . Matter Fused 22 | . . . . . . 15 5 1 1 . . . . . . . . . . . . . . Heat Flow Errors 9 | . . . . . 2 5 . 1 1 . . . . . . . . . . . . . . Energy Discharges 11 | . . . . . 1 4 4 2 . . . . . . . . . . . . . . . Parts Rejected 2 | . . . . . . 1 1 . . . . . . . . . . . . . . . . Data Loss (minor) 11 | . . . . . 3 4 3 1 . . . . . . . . . . . . . . . Data Loss (major) 2 | . . . . . . 1 1 . . . . . . . . . . . . . . . . Misfires 4 | . . . . . . 4 . . . . . . . . . . . . . . . . . Alerts 2 | . . . . . . 1 1 . . . . . . . . . . . . . . . . Misdirections 21 | . . . . . . 9 6 6 . . . . . . . . . . . . . . . Targeting Errors 13 | . . . . . . 11 2 . . . . . . . . . . . . . . . . Weapon Failures 1 | . . . . . 1 . . . . . . . . . . . . . . . . . . Overload Shots . | . . . . . . . . . . . . . . . . . . . . . . . . Overflow Damage 993 | . . . . . 29 283 196 . . 56 39 133 . 26 . 80 151 . . . . . . Projectiles 118 | . . . . . . 118 . . . . . . . . . . . . . . . . . Explosions 377 | . . . . . 29 165 44 . . . . . . . . 80 59 . . . . . . Melee 498 | . . . . . . . 152 . . 56 39 133 . 26 . . 92 . . . . . . Knockbacks 42 | . . . . . 22 19 1 . . . . . . . . . . . . . . . . Impact 1 | . . . . . . . 1 . . . . . . . . . . . . . . . . Kinetic 41 | . . . . . 22 19 . . . . . . . . . . . . . . . . . Secondary . | . . . . . . . . . . . . . . . . . . . . . . . . Self-Inflicted Damage 720 | . . . . . 2 125 208 . . . . . . . . 340 42 . . . . . 3 Shots 12 | . . . . . . 2 5 . . . . . . . . 4 1 . . . . . . Rammed 4 | . . . . . 2 . . . . . . . . . . . . . . . . . 2 Targets Rammed 6 | . . . . . 4 . . . . . . . . . . . . . . . . . 2 Kicked 2 | . . . . . 2 . . . . . . . . . . . . . . . . . . Crushed . | . . . . . . . . . . . . . . . . . . . . . . . . Highest Temperature 372 | . 267 222 . 47 314 372 27 138 264 . 47 . 4 95 99 25 60 . . . . 228 18 Average Temperature 74 | . 80 90 . 23 88 88 12 74 154 . 18 . 4 49 31 11 16 . . . . 91 10 Received Heat Transfer 3134 | . 282 54 . 138 1134 1035 18 . . . . . . 6 . . 126 174 . . . 77 90 Effects 5 | . . . . . . 4 . . . . . . . . . . . . . . . 1 . Shutdowns 1 | . . . . . . 1 . . . . . . . . . . . . . . . . . Energy Bleed 3 | . . . . . . 2 . . . . . . . . . . . . . . . 1 . Short Circuit 1 | . . . . . . 1 . . . . . . . . . . . . . . . . . Siege Activations . | . . . . . . . . . . . . . . . . . . . . . . . . Robots Corrupted . | . . . . . . . . . . . . . . . . . . . . . . . . Combat Hostiles . | . . . . . . . . . . . . . . . . . . . . . . . . Parts Fried 1 | . . . . . . . 1 . . . . . . . . . . . . . . . . Impact Corruptions 2 | . . . . . . . 2 . . . . . . . . . . . . . . . . Robots Melted . | . . . . . . . . . . . . . . . . . . . . . . . . Combat Hostiles . | . . . . . . . . . . . . . . . . . . . . . . . . Parts Melted 4 | . 1 . . . 2 1 . . . . . . . . . . . . . . . . . Heat Transferred 4461 | . 854 185 . . 851 2371 . . . . . . . . . 200 . . . . . . . Parts Sabotaged . | . . . . . . . . . . . . . . . . . . . . . . . . Parts Stolen 1 | . . . . . . . 1 . . . . . . . . . . . . . . . . Parts Stripped . | . . . . . . . . . . . . . . . . . . . . . . . . Power Chain Reactions . | . . . . . . . . . . . . . . . . . . . . . . . . Missiles Intercepted . | . . . . . . . . . . . . . . . . . . . . . . . . Alert | -11 -10 -10 -10 -9 -8 -7 -7 -7 -7 -6 -6 -6 -6 -6 -5 -5 -5 -4 -4 -4 -4 -3 -3 ------- Run | Scr Mat Min Exi Min Mat Fac Low Low Zio Pro Fac Low Low Dat Pro Fac Ext Fac Upp Upp War Pro Res Peak Influence 1167 | . 271 136 . 70 332 1167 . . . . 159 . . . . 276 682 258 . . . . 163 Average Influence 264 | . 115 34 . 51 174 622 . . . . 57 . . . . 110 365 199 . . . . 81 Maximum Alert Level 4 | . 1 . . . 1 4 . . . . . . . . . 1 2 1 . . . . . Low Security (%) 59 | . 80 100 . 100 64 7 . . . . 100 . . . . 76 45 41 . . . . 100 Level 1 20 | . 19 . . . 35 28 . . . . . . . . . 23 5 58 . . . . . Level 2 10 | . . . . . . 24 . . . . . . . . . . 48 . . . . . . Level 3 6 | . . . . . . 27 . . . . . . . . . . . . . . . . . Level 4 3 | . . . . . . 12 . . . . . . . . . . . . . . . . . Level 5 . | . . . . . . . . . . . . . . . . . . . . . . . . High Security . | . . . . . . . . . . . . . . . . . . . . . . . . Max Security . | . . . . . . . . . . . . . . . . . . . . . . . . Squads Dispatched 36 | . 3 . . . 4 17 . . . . 1 . . . . 2 3 1 . . . . 5 Investigation 8 | . 2 . . . 2 1 . . . . 1 . . . . . 1 1 . . . . . Extermination 3 | . . . . . . 3 . . . . . . . . . . . . . . . . . Reinforcement 9 | . 1 . . . 2 2 . . . . . . . . . . 2 . . . . . 2 Assault 2 | . . . . . . 2 . . . . . . . . . . . . . . . . . Garrison 9 | . . . . . . 9 . . . . . . . . . . . . . . . . . Intercept 5 | . . . . . . . . . . . . . . . . 2 . . . . . . 3 Construction Impeded 1 | . . . . . . 1 . . . . . . . . . . . . . . . . . Haulers Reinforced . | . . . . . . . . . . . . . . . . . . . . . . . . Stealth | -11 -10 -10 -10 -9 -8 -7 -7 -7 -7 -6 -6 -6 -6 -6 -5 -5 -5 -4 -4 -4 -4 -3 -3 --------- Run | Scr Mat Min Exi Min Mat Fac Low Low Zio Pro Fac Low Low Dat Pro Fac Ext Fac Upp Upp War Pro Res Distress Signals 16 | . 2 . . . 4 . . . . . 1 . . . . 1 6 1 . . . . 1 Communications Jammed . | . . . . . . . . . . . . . . . . . . . . . . . . Distress Signals . | . . . . . . . . . . . . . . . . . . . . . . . . Times Spotted 310 | . 30 5 . 3 52 72 10 . . 1 13 . . 4 2 7 56 15 4 3 1 10 22 Peak Tracking Total 12 | . 5 3 . 3 5 6 4 . . 3 5 . . 4 4 3 12 10 5 3 1 8 11 Tactical Retreats 41 | . 1 . . . 3 3 2 . . . 4 . . . 1 1 10 3 2 2 . 4 5 Traps | -11 -10 -10 -10 -9 -8 -7 -7 -7 -7 -6 -6 -6 -6 -6 -5 -5 -5 -4 -4 -4 -4 -3 -3 ------- Run | Scr Mat Min Exi Min Mat Fac Low Low Zio Pro Fac Low Low Dat Pro Fac Ext Fac Upp Upp War Pro Res Traps Triggered 9 | . 1 . . . 1 3 . . . . . . . . . . 1 1 . . . . 2 Indirectly . | . . . . . . . . . . . . . . . . . . . . . . . . Trap Hack Attempts . | . . . . . . . . . . . . . . . . . . . . . . . . Triggered . | . . . . . . . . . . . . . . . . . . . . . . . . Disarmed . | . . . . . . . . . . . . . . . . . . . . . . . . Reprogrammed 16 | . . . . . . . . . . . . . . . . . 16 . . . . . . Reused 14 | . . . . . . . 2 . . . . . . . . . 12 . . . . . . Traps Extracted . | . . . . . . . . . . . . . . . . . . . . . . . . Installed 11 | . . . . . . . 11 . . . . . . . . . . . . . . . . Triggered 27 | . . . . . . . 2 . . . . 3 . . 1 . 12 . 3 . 6 . . Exploded 3 | . . . . . 3 . . . . . . . . . . . . . . . . . . Machines | -11 -10 -10 -10 -9 -8 -7 -7 -7 -7 -6 -6 -6 -6 -6 -5 -5 -5 -4 -4 -4 -4 -3 -3 ---------- Run | Scr Mat Min Exi Min Mat Fac Low Low Zio Pro Fac Low Low Dat Pro Fac Ext Fac Upp Upp War Pro Res Machines Disabled 18 | . . . . . 1 8 . . . 1 1 . . . . 5 2 . . . . . . Max in Single Turn 5 | . . . . . 1 3 . . . 1 1 . . . . 5 . . . . . . . Garrison Access 5 | . . . . . . . . . . . 2 . . . . 1 . 1 . . . . 1 Machines Sabotaged . | . . . . . . . . . . . . . . . . . . . . . . . . Garrisons Compromised . | . . . . . . . . . . . . . . . . . . . . . . . . Overloaded Fab Kills 3 | . . . . . . . . . . . . . . . . . . 3 . . . . . Fab Network Shutdowns . | . . . . . . . . . . . . . . . . . . . . . . . . Hacking | -11 -10 -10 -10 -9 -8 -7 -7 -7 -7 -6 -6 -6 -6 -6 -5 -5 -5 -4 -4 -4 -4 -3 -3 --------- Run | Scr Mat Min Exi Min Mat Fac Low Low Zio Pro Fac Low Low Dat Pro Fac Ext Fac Upp Upp War Pro Res Machines Accessed 88 | . 7 . 1 . 6 12 2 1 . 1 15 1 . 4 . 5 16 4 . . 8 1 4 Terminals 48 | . 6 . . . 5 6 . . . . 8 . . . . 3 16 1 . . . 1 2 Fabricators 6 | . . . . . . 2 . . . . 2 . . . . 1 . 1 . . . . . Repair Stations . | . . . . . . . . . . . . . . . . . . . . . . . . Recycling Units 7 | . 1 . . . 1 1 . . . . 2 . . . . . . 1 . . . . 1 Scanalyzers 3 | . . . . . . 2 . . . . 1 . . . . . . . . . . . . Garrison Access 6 | . . . . . . 1 . . . . 2 . . . . 1 . 1 . . . . 1 Total Hacks 327 | . 22 . 23 . 24 37 2 1 . 1 51 1 . 24 . 17 83 9 . . 18 1 13 Successful 240 | . 13 . 23 . 11 23 2 1 . 1 30 1 . 24 . 10 68 6 . . 18 1 8 Failed 84 | . 9 . . . 12 14 . . . . 20 . . . . 7 14 3 . . . . 5 Catastrophic 9 | . . . . . 2 2 . . . . 2 . . . . 1 1 . . . . . 1 Database Lockouts 3 | . . . . . 1 . . . . . 1 . . . . . 1 . . . . . . Manual 160 | . 15 . . . 13 11 . . 1 . 26 . . . . 7 67 6 . . 2 . 12 Terminals 202 | . 21 . . . 23 14 . . . . 34 . . . . 11 83 4 . . . 1 11 Fabricators 18 | . . . . . . 4 . . . . 7 . . . . 4 . 3 . . . . . Repair Stations . | . . . . . . . . . . . . . . . . . . . . . . . . Recycling Units 10 | . 1 . . . 1 2 . . . . 4 . . . . . . 1 . . . . 1 Scanalyzers 16 | . . . . . . 13 . . . . 3 . . . . . . . . . . . . Garrison Access 11 | . . . . . . 4 . . . . 3 . . . . 2 . 1 . . . . 1 Terminal Hacks 160 | . 9 . 23 . 10 4 2 1 . 1 13 1 . 24 . 5 43 2 . . 18 1 3 Record 53 | . . . 23 . 1 . . . . 1 . . . 11 . . . . . . 16 1 . Part Schematic 17 | . 3 . . . 3 . . . . . 2 . . 6 . . 2 . . . . . 1 Robot Schematic 7 | . 1 . . . . . . . . . 1 . . 4 . 1 . . . . . . . Robot Analysis 1 | . . . . . . . . . . . 1 . . . . . . . . . . . . Prototype ID Bank 12 | . 1 . . . 2 2 . . . . 1 . . 3 . 2 1 . . . . . . Open Door 17 | . . . . . . . 2 1 . . . 1 . . . 1 10 . . . 2 . . Level Access Points 1 | . . . . . . . . . . . . . . . . . . . . . . . 1 Branch Access Points 4 | . . . . . . 1 . . . . 1 . . . . 1 . 1 . . . . . Machine Index 1 | . . . . . . . . . . . . . . . . . 1 . . . . . . Fabricator Index 1 | . . . . . . . . . . . 1 . . . . . . . . . . . . Scanalyzer Index 1 | . . . . . . . . . . . 1 . . . . . . . . . . . . Alert Level 5 | . . . . . 1 . . . . . 2 . . . . . 1 1 . . . . . Locate Traps 18 | . 3 . . . 1 1 . . . . 1 . . . . . 11 . . . . . 1 Reprogram Traps 3 | . . . . . . . . . . . . . . . . . 3 . . . . . . Extermination Status 1 | . . . . . . . . . . . . . . . . . 1 . . . . . . Recall Investigation 1 | . . . . . 1 . . . . . . . . . . . . . . . . . . Hauler Manifests 4 | . 1 . . . 1 . . . . . 1 . . . . . 1 . . . . . . Registered Components 1 | . . . . . . . . . . . . . . . . . 1 . . . . . . Registered Prototypes 1 | . . . . . . . . . . . . . . . . . 1 . . . . . . Zone Layout 11 | . . . . . . . . . . . 1 . . . . . 10 . . . . . . Fabricator Hacks 11 | . . . . . . 4 . . . . 5 . . . . 2 . . . . . . . Load Schematic 5 | . . . . . . 2 . . . . 2 . . . . 1 . . . . . . . Build 6 | . . . . . . 2 . . . . 3 . . . . 1 . . . . . . . Repair Station Hacks . | . . . . . . . . . . . . . . . . . . . . . . . . Recycling Unit Hacks . | . . . . . . . . . . . . . . . . . . . . . . . . Scanalyzer 15 | . . . . . . 13 . . . . 2 . . . . . . . . . . . . Insert Component 6 | . . . . . . 5 . . . . 1 . . . . . . . . . . . . Analyze 9 | . . . . . . 8 . . . . 1 . . . . . . . . . . . . Garrison Access Hacks 5 | . . . . . . . . . . . 2 . . . . 1 . 1 . . . . 1 Seal Access 5 | . . . . . . . . . . . 2 . . . . 1 . 1 . . . . 1 Unauthorized Hacks 49 | . 4 . . . 1 2 . . . . 8 . . . . 2 25 3 . . . . 4 Terminals 40 | . 3 . . . . 1 . . . . 5 . . . . 2 25 1 . . . . 3 Track 12 | . . . . . . . . . . . . . . . . . 10 1 . . . . 1 Assimilate 4 | . . . . . . . . . . . 1 . . . . . 3 . . . . . . Botnet 22 | . 2 . . . . 1 . . . . 4 . . . . 2 11 . . . . . 2 Operators 2 | . 1 . . . . . . . . . . . . . . . 1 . . . . . . Fabricators 1 | . . . . . . . . . . . . . . . . . . 1 . . . . . Overload 1 | . . . . . . . . . . . . . . . . . . 1 . . . . . Repair Stations . | . . . . . . . . . . . . . . . . . . . . . . . . Recycling Units 8 | . 1 . . . 1 1 . . . . 3 . . . . . . 1 . . . . 1 Reject 2 | . . . . . . . . . . . 2 . . . . . . . . . . . . Recyclers 4 | . . . . . . 1 . . . . 1 . . . . . . 1 . . . . 1 Tunnel 2 | . 1 . . . 1 . . . . . . . . . . . . . . . . . . Scanalyzers . | . . . . . . . . . . . . . . . . . . . . . . . . Garrison Access . | . . . . . . . . . . . . . . . . . . . . . . . . Data Cores Recovered 1 | . . . . . . 1 . . . . . . . . . . . . . . . . . Used 1 | . . . . . . 1 . . . . . . . . . . . . . . . . . Hacking Detections 57 | . 6 . . . 5 12 . . . . 14 . . . . 4 11 2 . . . . 3 Full Trace Events 1 | . . . . . . 1 . . . . . . . . . . . . . . . . . Feedback Events . | . . . . . . . . . . . . . . . . . . . . . . . . Feedback Blocked . | . . . . . . . . . . . . . . . . . . . . . . . . Robot Schematics Acquired 7 | . 1 . . . . . . . . . 1 . . 4 . 1 . . . . . . . Robots Built . | . . . . . . . . . . . . . . . . . . . . . . . . Matter . | . . . . . . . . . . . . . . . . . . . . . . . . Time . | . . . . . . . . . . . . . . . . . . . . . . . . Total Robot Build Rating . | . . . . . . . . . . . . . . . . . . . . . . . . Part Schematics Acquired 22 | . 3 . . . 3 4 . . . . 3 . . 6 . . 2 . . . . . 1 Parts Built 10 | . . . . . . 3 . . . . 6 . . . . 1 . . . . . . . Matter 1220 | . . . . . . 332 . . . . 570 . . . . 318 . . . . . . . Time 396 | . . . . . . 85 . . . . 142 . . . . 169 . . . . . . . Total Part Build Rating 44 | . . . . . . 8 . . . . 30 . . . . 6 . . . . . . . Parts Repaired . | . . . . . . . . . . . . . . . . . . . . . . . . Time . | . . . . . . . . . . . . . . . . . . . . . . . . Parts Recycled . | . . . . . . . . . . . . . . . . . . . . . . . . Recycled Matter . | . . . . . . . . . . . . . . . . . . . . . . . . Retrieved Matter . | . . . . . . . . . . . . . . . . . . . . . . . . Retrieved Components . | . . . . . . . . . . . . . . . . . . . . . . . . Parts Scanalyzed 5 | . . . . . . 4 . . . . 1 . . . . . . . . . . . . Part Schematics Acquired 5 | . . . . . . 4 . . . . 1 . . . . . . . . . . . . Parts Damaged . | . . . . . . . . . . . . . . . . . . . . . . . . Bothacking | -11 -10 -10 -10 -9 -8 -7 -7 -7 -7 -6 -6 -6 -6 -6 -5 -5 -5 -4 -4 -4 -4 -3 -3 ------------ Run | Scr Mat Min Exi Min Mat Fac Low Low Zio Pro Fac Low Low Dat Pro Fac Ext Fac Upp Upp War Pro Res Used RIF Installer . | . . . . . . . . . . . . . . . . . . . . . . . . Robots Hacked . | . . . . . . . . . . . . . . . . . . . . . . . . Non-combat . | . . . . . . . . . . . . . . . . . . . . . . . . Combat . | . . . . . . . . . . . . . . . . . . . . . . . . Robot Hacks Applied . | . . . . . . . . . . . . . . . . . . . . . . . . Relay Couplers Released . | . . . . . . . . . . . . . . . . . . . . . . . . Robots Rewired 14 | . . . . . . . . . . . . . . . . . 14 . . . . . . Allies Hacked . | . . . . . . . . . . . . . . . . . . . . . . . . Hacks Repelled . | . . . . . . . . . . . . . . . . . . . . . . . . Allies | -11 -10 -10 -10 -9 -8 -7 -7 -7 -7 -6 -6 -6 -6 -6 -5 -5 -5 -4 -4 -4 -4 -3 -3 -------- Run | Scr Mat Min Exi Min Mat Fac Low Low Zio Pro Fac Low Low Dat Pro Fac Ext Fac Upp Upp War Pro Res Total Allies 34 | . . . . 1 . . . . 5 . 1 . . . . . 27 . . . . . . Largest Group 6 | . . . . 1 1 . . . 5 5 1 . . . . . 6 . . . . . . Highest-Rated Group 262 | . . . . 31 31 . . . 143 143 26 . . . . . 262 . . . . . . Highest-Rated Ally 156 | . . . . 31 31 . . . 37 37 26 . . . . . 156 . . . . . . Total Orders 23 | . . . . . . . . . . . 2 . . . . . 15 6 . . . . . STAY 6 | . . . . . . . . . . . 1 . . . . . 4 1 . . . . . GOTO 7 | . . . . . . . . . . . . . . . . . 6 1 . . . . . FOLLOW 7 | . . . . . . . . . . . 1 . . . . . 5 1 . . . . . EXPLORE 3 | . . . . . . . . . . . . . . . . . . 3 . . . . . Ally Attacks 208 | . . . . . . . . . . 21 . . . . . . 187 . . . . . . Total Damage 4244 | . . . . . . . . . . 343 . . . . . . 3901 . . . . . . Kills 25 | . . . . . . . . . . 4 . . . . . . 21 . . . . . . Allies Corrupted . | . . . . . . . . . . . . . . . . . . . . . . . . Allies Melted 1 | . . . . . . . . . . . . . . . . . 1 . . . . . . Intel | -11 -10 -10 -10 -9 -8 -7 -7 -7 -7 -6 -6 -6 -6 -6 -5 -5 -5 -4 -4 -4 -4 -3 -3 ------- Run | Scr Mat Min Exi Min Mat Fac Low Low Zio Pro Fac Low Low Dat Pro Fac Ext Fac Upp Upp War Pro Res Robot Analysis Total 116 | . . . . . . . . . . . 1 . . 115 . . . . . . . . . Derelict Logs Recovered 8 | . . 1 . . . . 1 . 1 2 . 2 . . . . . . 1 . . . . Drone Launches 5 | . . . . . . . . . . . . . . . . . 5 . . . . . . Drone Recoveries . | . . . . . . . . . . . . . . . . . . . . . . . . Exploration | -11 -10 -10 -10 -9 -8 -7 -7 -7 -7 -6 -6 -6 -6 -6 -5 -5 -5 -4 -4 -4 -4 -3 -3 ------------- Run | Scr Mat Min Exi Min Mat Fac Low Low Zio Pro Fac Low Low Dat Pro Fac Ext Fac Upp Upp War Pro Res Turns Passed 14312 | . 1368 820 864 470 2156 2381 469 249 367 887 772 210 279 28 222 293 872 259 132 193 444 372 205 Spaces Moved 15694 | 1 741 416 421 209 1012 1342 943 604 709 551 1394 772 851 98 600 656 1402 432 264 382 755 763 376 Core 1203 | . . . . . . . . . . 9 . . . . . . . 149 264 382 303 . 96 Treads 286 | . . . . . . 286 . . . . . . . . . . . . . . . . . Legs 2883 | 1 741 416 421 209 1012 83 . . . . . . . . . . . . . . . . . Wheels 599 | . . . . . . 599 . . . . . . . . . . . . . . . . . Hover 1940 | . . . . . . . . . . . . . . . . . 162 283 . . 452 763 280 Flight 8783 | . . . . . . 374 943 604 709 542 1394 772 851 98 600 656 1240 . . . . . . Fastest Speed 17 | 120 120 180 180 210 150 23 17 29 26 17 20 26 17 17 17 17 20 50 50 50 43 43 43 Average Speed 68 | 120 149 180 202 210 158 122 28 29 28 94 27 26 25 23 25 30 36 52 50 50 50 43 46 Slowest Speed 360 | 120 180 180 210 210 210 360 29 29 29 250 92 26 26 26 26 97 97 61 50 50 65 43 270 Overloaded Moves 228 | . . . . . . . 28 . . 1 47 . 5 16 11 19 101 . . . . . . Propulsion Burnouts . | . . . . . . . . . . . . . . . . . . . . . . . . Robots Hopped 22 | . . . . . . 1 . . . . . . . 4 . . 17 . . . . . . Cave-ins Triggered 1 | . . . . . . . . . . . . . . . . . 1 . . . . . . Exploration Rate (%) 64 | 2 94 84 87 58 73 47 87 74 84 60 27 92 91 77 61 12 95 20 49 71 93 94 12 Regions Visited 23 Branch Regions 16 Pre-discovered Areas 31 | . 1 . 1 . 1 . . . 3 . . . . 25 . . . . . . . . . Known Exits Taken 17 | . . . . . . 1 1 1 1 1 1 1 1 1 1 1 1 1 1 1 1 1 . Unknown Exits Taken 6 | 1 1 1 1 1 1 . . . . . . . . . . . . . . . . . . Scrap Searched 21 | . . 3 . 1 . . 2 2 3 2 . 3 2 . 1 . . . . 1 . 1 . Spaces Dug 173 | . . . . . . 4 9 4 . 8 33 2 29 . 21 37 21 3 . . . 2 . Terrain Destroyed 521 | . . . . . 15 123 55 4 . 8 33 2 29 . 21 64 154 3 . . . 10 . Melee 169 | . . . . . . 2 9 4 . 8 33 2 29 . 21 37 21 3 . . . . . Projectile 27 | . . . . . . 17 . . . . . . . . . . . . . . . 10 . AOE 325 | . . . . . 15 104 46 . . . . . . . . 27 133 . . . . . . Actions | -11 -10 -10 -10 -9 -8 -7 -7 -7 -7 -6 -6 -6 -6 -6 -5 -5 -5 -4 -4 -4 -4 -3 -3 --------- Run | Scr Mat Min Exi Min Mat Fac Low Low Zio Pro Fac Low Low Dat Pro Fac Ext Fac Upp Upp War Pro Res Total 18434 | . 899 461 433 225 1382 1814 1119 673 869 899 1738 778 879 96 650 713 1698 461 263 382 811 794 397 Wait 1593 | . 55 3 . . 163 180 136 55 154 326 273 . . . 29 11 145 12 . . 29 22 . Move 15627 | . 740 415 420 208 1011 1339 942 603 708 550 1393 771 850 89 599 655 1367 431 263 381 754 762 376 Hop 21 | . . . . . . 1 . . . . . . . 4 . . 16 . . . . . . Pick Up 89 | . 13 7 5 1 21 16 2 3 . 1 5 2 . . 1 1 2 3 . . 6 . . Fast Attach 109 | . 5 1 . . 13 37 2 2 1 2 11 . . . . 2 6 4 . 1 15 . 7 Attach 74 | . 2 1 . 1 15 19 1 . . 1 3 . . 1 . . 17 4 . . 3 1 5 Detach 45 | . 1 . . . 5 15 . . 1 . 1 . . . . 1 15 2 . . 2 . 2 Swap 73 | . 11 4 3 3 15 21 4 1 3 1 . . . 1 . 2 . . . . . 3 1 Drop 128 | . 13 10 5 3 25 38 2 5 2 1 12 2 . . . 3 3 2 . . 2 . . Fire 374 | . 59 20 . 9 110 146 7 . . 1 . . . . . . 12 . . . . 6 4 Melee 202 | . . . . . . 2 12 4 . 16 40 3 29 1 21 38 33 3 . . . . . Ram 2 | . . . . . . . . . . . . . . . . . . . . . . . 2 Kick 4 | . . . . . 4 . . . . . . . . . . . . . . . . . . Crush . | . . . . . . . . . . . . . . . . . . . . . . . . Escape Stasis 19 | . . . . . . . . . . . . . . . . . 19 . . . . . . Rewire 61 | . . . . . . . . . . . . . . . . . 61 . . . . . . Trap 11 | . . . . . . . 11 . . . . . . . . . . . . . . . . Miscellaneous 2 | . . . . . . . . . . . . . . . . . 2 . . . . . . Route ------- -11/Scrapyard -10/Materials (discovered 4 exits: [*Mat x3] / [*Min]) -10/Mines (discovered 2 exits: [*Mat] / *Exi) -10/Exiles -9/Mines -8/Materials (discovered 2 exits: *Fac x2) -7/Factory (discovered 4 exits: *Fac x2 / *Low x2) -7/Lower Caves -7/Lower Caves -7/Zion -6/Proximity Caves -6/Factory (discovered 2 exits: *Low x2) -6/Lower Caves -6/Lower Caves (discovered 2 exits: *Fac / *Dat) -6/Data Miner -5/Proximity Caves -5/Factory (discovered 4 exits: Upp x2 / *Ext x2) -5/Extension (discovered 2 exits: *Fac / *Cet) -4/Factory (discovered 3 exits: *Upp x2 / Arm) -4/Upper Caves -4/Upper Caves (discovered 2 exits: *Res / *War) -4/Warlord -3/Proximity Caves -3/Research (discovered 4 exits: Res x3 / Tes) History --------- Turn | Location | Event 1 | -11/Scrapyard | Discovered new exit (range 0) 1 | -11/Scrapyard | Entered Materials 96 | -10/Materials | Discovered new exit (range 16) 134 | -10/Materials | Discovered new exit (range 15) 306 | -10/Materials | Build established: Mutant 385 | -10/Materials | Discovered new exit (range 5) 922 | -10/Materials | Discovered new exit (range 11) 1369 | -10/Materials | Entered Mines 1403 | -10/Mines | Met a Derelict bent on vengeance 1420 | -10/Mines | Deemed a non-threat by the Exiles lab entrance 1420 | -10/Mines | Discovered new exit (range 5) 1442 | -10/Mines | Build established: Scavenger-Mutant 1488 | -10/Mines | A weapon hastily lodged in a ceiling crevice suddenly fell to the ground 1580 | -10/Mines | Found a damaged Exp. Sensor Array with a note attached 1584 | -10/Mines | Found Prototype Device 1778 | -10/Mines | Received a Rocket Launcher from a helpful Derelict 2072 | -10/Mines | Discovered new exit (range 11) 2086 | -10/Mines | Build established: Mutant 2189 | -10/Mines | Entered Exiles 2255 | -10/Exiles | Met 8R-AWN 2284 | -10/Exiles | Met EX-HEX 2461 | -10/Exiles | Visited The Gauntlet 2661 | -10/Exiles | Met EX-DEC 2683 | -10/Exiles | Build established: Hauler-Mutant 2714 | -10/Exiles | Learned location of Zion (-7) 2768 | -10/Exiles | Met EX-BIN 3032 | -10/Exiles | Discovered new exit (range 12) 3053 | -10/Exiles | Entered Mines 3102 | -9/Mines | Core integrity fell below 50% 3358 | -9/Mines | Received a Mining Laser from a helpful Derelict 3493 | -9/Mines | Discovered new exit (range 15) 3523 | -9/Mines | Entered Materials 3523 | -8/Materials | Accompanied by 1 ally 3523 | -8/Materials | Evolved 4 slots: Propulsion x2, Utility x2 4668 | -8/Materials | Lost 4 parts (2n2w) 5004 | -8/Materials | Discovered new exit (range 9) 5078 | -8/Materials | Core integrity fell below 50% 5101 | -8/Materials | Lost 4 parts (3n1w) 5461 | -8/Materials | Discovered new exit (range 11) 5560 | -8/Materials | Central database locked down 5679 | -8/Materials | Entered Factory 5679 | -7/Factory | Evolved 2 slots: Propulsion x1, Utility x1 5753 | -7/Factory | Identified Exp. Sensor Array 5811 | -7/Factory | Garrison activated, responded to threat 5888 | -7/Factory | Lost 5 parts (3n1u1w) 6201 | -7/Factory | Build established: Scavenger-Mutant 6243 | -7/Factory | Discovered new exit (range 15) 6347 | -7/Factory | Discovered new exit (range 11) 6586 | -7/Factory | Identified exit to Lower Caves 6879 | -7/Factory | First assault squad dispatched 7302 | -7/Factory | Core integrity fell below 50% 7310 | -7/Factory | Garrison activated, responded to threat 7357 | -7/Factory | System corruption reached 10% 7623 | -7/Factory | Lost 3 parts (2n1w) 7650 | -7/Factory | Garrison activated, responded to threat 7803 | -7/Factory | Lost 3 parts (2n1w) 7858 | -7/Factory | Fabricated Adv. Signal Interpreter (x2) 7961 | -7/Factory | Fabricated Imp. Flight Unit (x1) 8060 | -7/Factory | Entered Lower Caves 8233 | -7/Lower Caves | Attracted the attention of an 0b10 checkpoint 8233 | -7/Lower Caves | Core integrity fell below 20% 8233 | -7/Lower Caves | Cld. VTOL Module stolen by Master Thief 8278 | -7/Lower Caves | Build established: Hacker-Sprinter 8328 | -7/Lower Caves | Encountered a Warlord checkpoint 8391 | -7/Lower Caves | Learned Factory terminal intel 8394 | -7/Lower Caves | Discovered new exit (range 5) 8395 | -7/Lower Caves | Identified exit to Lower Caves 8529 | -7/Lower Caves | Entered another Lower Caves area 8589 | -7/Lower Caves | Encountered a Warlord checkpoint 8728 | -7/Lower Caves | Discovered new exit (range 9) 8730 | -7/Lower Caves | Identified exit to Zion 8778 | -7/Lower Caves | Entered Zion 8791 | -7/Zion | Discovered new exit (range 12) 8794 | -7/Zion | Identified exit to Proximity Caves 8832 | -7/Zion | System corruption cleaned by Quarantine Array 8861 | -7/Zion | Gained Derelict followers 8870 | -7/Zion | Received a visual enhancement algorithm 8920 | -7/Zion | Learned Factory emergency access door positions 8939 | -7/Zion | Given A8's code to call for help 9145 | -7/Zion | Entered Proximity Caves 9145 | -6/Proximity Caves | Accompanied by 5 allies 9395 | -6/Proximity Caves | Learned Factory non-interactive machine intel 9514 | -6/Proximity Caves | Build established: Hacker-Mutant 9713 | -6/Proximity Caves | Learned Factory terminal intel 9770 | -6/Proximity Caves | Found Alien Artifact 9770 | -6/Proximity Caves | Identified Dimensional Node Initializer 9770 | -6/Proximity Caves | Initialized slip node 10013 | -6/Proximity Caves | Discovered new exit (range 8) 10032 | -6/Proximity Caves | Identified exit to Factory 10032 | -6/Proximity Caves | Entered Factory 10032 | -6/Factory | Evolved 2 slots: Power x1, Utility x1 10034 | -6/Factory | Loaded intel: 203 non-interactive machine locations 10035 | -6/Factory | Loaded intel: 20 terminal locations 10214 | -6/Factory | Identified exit to Lower Caves 10328 | -6/Factory | Fabricated Lgt. Antimatter Reactor (x2) 10542 | -6/Factory | Fabricated Mic. Nuclear Core? 10676 | -6/Factory | Fabricated Mic. Nuclear Core? 10692 | -6/Factory | Build established: Hacker-Sprinter 10731 | -6/Factory | Central database locked down 10804 | -6/Factory | Entered Lower Caves 10934 | -6/Lower Caves | Discovered new exit (range 11) 10961 | -6/Lower Caves | Learned Factory terminal intel 10983 | -6/Lower Caves | Identified exit to Lower Caves 10984 | -6/Lower Caves | Learned Factory security intel 11014 | -6/Lower Caves | Entered another Lower Caves area 11041 | -6/Lower Caves | Discovered new exit (range 8) 11043 | -6/Lower Caves | Identified exit to Factory 11186 | -6/Lower Caves | Encountered a Warlord checkpoint 11292 | -6/Lower Caves | Discovered new exit (range 7) 11293 | -6/Lower Caves | Identified exit to Data Miner 11293 | -6/Lower Caves | Entered Data Miner 11293 | -6/Data Miner | Discovered new exit (range 6) 11295 | -6/Data Miner | Identified exit to Proximity Caves 11298 | -6/Data Miner | Met Data Miner 11305 | -6/Data Miner | Learned location of Section 7 (-2) 11305 | -6/Data Miner | Acquired the access code to Warlord's prototype stash 11308 | -6/Data Miner | Received God Mode back door access code from Data Miner 11313 | -6/Data Miner | Interfaced with the Data Conduit 11321 | -6/Data Miner | Entered Proximity Caves 11531 | -5/Proximity Caves | Discovered exit to Factory (range 8) 11543 | -5/Proximity Caves | Entered Factory 11543 | -5/Factory | Evolved 2 slots: Propulsion x1, Utility x1 11545 | -5/Factory | Loaded intel: 227 machine locations 11546 | -5/Factory | Loaded intel: 20 terminal locations 11607 | -5/Factory | Identified exit to Upper Caves 11607 | -5/Factory | Identified exit to Extension 11739 | -5/Factory | Intercept squad dispatched 11746 | -5/Factory | Spotted B-75 Beast 11759 | -5/Factory | Spotted Tracker 11764 | -5/Factory | Fabricated Mni. Smartbomb Launcher (x1) 11767 | -5/Factory | Destroyed Tracker 11806 | -5/Factory | Spotted Combat Programmer 11836 | -5/Factory | Entered Extension 11837 | -5/Extension | Loaded intel: 44 machine locations 11916 | -5/Extension | Rescued a captive Derelict 11918 | -5/Extension | Central database locked down 11919 | -5/Extension | Rescued a captive Derelict 11938 | -5/Extension | Rescued a captive Derelict 12079 | -5/Extension | Crushed by falling debris 12112 | -5/Extension | Rescued a captive Derelict 12112 | -5/Extension | Rescued a captive Derelict 12163 | -5/Extension | Rescued a captive Derelict 12163 | -5/Extension | Rescued a captive Derelict 12170 | -5/Extension | Rescued a captive Derelict 12171 | -5/Extension | Rescued a captive Derelict 12173 | -5/Extension | Rescued a captive Derelict 12192 | -5/Extension | Rescued A7 12224 | -5/Extension | Rescued a captive Derelict 12277 | -5/Extension | Rescued a captive Derelict 12278 | -5/Extension | Rescued a captive Derelict 12306 | -5/Extension | Destroyed 7 combat bots 12322 | -5/Extension | Discovered new exit (range 10) 12322 | -5/Extension | Discovered new exit (range 6) 12366 | -5/Extension | Identified exit to Factory 12367 | -5/Extension | Identified exit to Cetus 12397 | -5/Extension | Spotted B-75 Beast 12454 | -5/Extension | Allies destroyed B-75 Beast 12461 | -5/Extension | Spotted B-75 Beast 12708 | -5/Extension | Entered Factory 12708 | -4/Factory | Accompanied by 4 allies 12708 | -4/Factory | Evolved 2 slots: Power x1, Utility x1 12709 | -4/Factory | Loaded intel: 266 machine locations 12710 | -4/Factory | Loaded intel: 20 terminal locations 12750 | -4/Factory | Spotted B-86 Titan 12830 | -4/Factory | Lost 3 parts (1p1n1w) 12888 | -4/Factory | Spotted B-86 Titan 12924 | -4/Factory | Lost 12 parts (1p5n5u1w) 12928 | -4/Factory | Identified exit to Upper Caves 12928 | -4/Factory | Identified exit to Armory 12957 | -4/Factory | Core integrity fell below 50% 12967 | -4/Factory | Entered Upper Caves 12968 | -4/Upper Caves | Core integrity fell below 20% 12999 | -4/Upper Caves | Lost 3 parts (3u) 13048 | -4/Upper Caves | Learned Research emergency access door positions 13077 | -4/Upper Caves | Discovered new exit (range 8) 13080 | -4/Upper Caves | Identified exit to Upper Caves 13099 | -4/Upper Caves | Entered another Upper Caves area 13128 | -4/Upper Caves | Discovered new exit (range 15) 13134 | -4/Upper Caves | Identified exit to Research 13225 | -4/Upper Caves | Spotted B-86 Titan 13252 | -4/Upper Caves | Build established: Mutant 13277 | -4/Upper Caves | Discovered new exit (range 13) 13281 | -4/Upper Caves | Identified exit to Warlord 13292 | -4/Upper Caves | Entered Warlord 13307 | -4/Warlord | Discovered new exit (range 8) 13321 | -4/Warlord | System corruption cleaned by Quarantine Array 13398 | -4/Warlord | Learned Armory repair station intel 13399 | -4/Warlord | Learned 4 Research zone layouts 13399 | -4/Warlord | Learned Armory trap positions 13399 | -4/Warlord | Learned Quarantine trap positions 13399 | -4/Warlord | Learned Research emergency access door positions 13448 | -4/Warlord | Visited the Vortex Lab 13449 | -4/Warlord | Warlord's base attacked by MAIN.C 13452 | -4/Warlord | Found Prototype Energy Gun 13452 | -4/Warlord | Identified Vortex Shotgun 13456 | -4/Warlord | Found Prototype Energy Gun 13456 | -4/Warlord | Identified Vortex Rifle 13459 | -4/Warlord | Found Vortex Rifle 13463 | -4/Warlord | Found Vortex Shotgun 13565 | -4/Warlord | Met Warlord 13584 | -4/Warlord | Opened Warlord's prototype stash 13601 | -4/Warlord | Found Vortex Chain Reactor 13604 | -4/Warlord | Found System Purifier 13609 | -4/Warlord | Found Exp. Phase Shifter 13718 | -4/Warlord | Opened side exit 13735 | -4/Warlord | Identified exit to Proximity Caves 13736 | -4/Warlord | Entered Proximity Caves 13895 | -3/Proximity Caves | Build established: Generator-Mutant 14050 | -3/Proximity Caves | Spotted B-86 Titan 14103 | -3/Proximity Caves | Discovered exit to Research (range 5) 14108 | -3/Proximity Caves | Entered Research 14108 | -3/Research | Evolved 2 slots: Propulsion x1, Utility x1 14109 | -3/Research | Identified exit to Testing 14112 | -3/Research | Loaded intel: 92 machine locations 14183 | -3/Research | Spotted B-86 Titan 14189 | -3/Research | Spotted B-86 Titan 14221 | -3/Research | Spotted B-86 Titan 14222 | -3/Research | Intercept squad dispatched 14224 | -3/Research | Identified exit to Research 14248 | -3/Research | Spotted Tracker 14248 | -3/Research | Spotted Tracker 14272 | -3/Research | Core integrity fell below 50% 14288 | -3/Research | Core integrity fell below 20% 14313 | -3/Research | Destroyed by Tracker with Linked Autogun Last Messages --------------- 14256_ Mak. Hover Unit destroyed. 14257_ Electron Diverter destroyed. 14259_ Vortex Rifle destroyed. 14259_ Mak. Hacking Suite destroyed. 14260_ Vortex Chain Reactor destroyed. 14260_ Mak. System Shield destroyed. 14261_ Med. Storage Unit destroyed. 14263_ Cld. Antigrav System destroyed. 14271_ Penetrated by Slug. 14273_ Mak. System Shield destroyed. 14277_ Penetrated by Slug. 14279_ B-86 Titan activates siege mode. 14294_ Slammed into O-24 Administrator. 14294_ Adv. Signal Interpreter destroyed. 14294_ System corrupted by crushing effect (+4). 14300_ Electron Diverter destroyed. 14301_ Slammed into O-24 Administrator. 14308_ Enh. Optical Array destroyed. 14310_ Acquired Adv. Medium Treads. 14312_ Slug penetrates Wall. Map ----- +----------------------------------------------------+ | ## #???????# #????????? | | "T ! ## #???????# #????????? | | ######### #???????# #????????? | | #???????# #???????# #????????? | | #???????# #???????# #????????? | | ##??????# #???????# #????????? | | "###########+########### #????????? | | #????????? | | "##### #????????? | | #??# #????????? | | "#?# #????????? | | "#""############## #????????? | | # ## #????????? | | == " "" BB # ## ###??????? | | =! "R"" BB # """## #??????? | | = """" t " Y"## #??????? | | ##############+### # """## #??????? | | ????????????? # #! ## #??????? | | ????????????? # # ## #??????? | | """?????????? # # ## #####+###??????? | | """?????????? # ; ## #?? ???????? | | """????????? |# ;#####+#### # ?????? | | ???????????? # # + # #????? | | ???????????? # # o ## # ] #????? | | """????????? # # """"## ###########????? | | """????????####### # @ """"## #??????????????? | | """??????????????# # """"## #??????????????? | | ?????????????????# # """"## #??????????????? | | ?????????????????# #s """"## #??????????